[Event "Chinese League Div-A Rapid 2022"]
[Site "Fuling,Chongqing"]
[Date "2022.09.16"]
[Round "9.7"]
[White "Li, Chao b"]
[Black "Bu, Xiangzhi"]
[Result "1/2-1/2"]
[ECO "C67"]
[WhiteElo "2679"]
[BlackElo "2709"]
[Annotator "ChessBase"]
[PlyCount "41"]
[EventDate "2022.09.07"]
[EventType "team-tourn"]
[EventCountry "CHN"]
[SourceTitle "playchess.com"]
[Source "ChessBase"]
[SourceQuality "1"]
[TimeControl "1500+10"]

1. e4 {[%emt 0:00:18]} e5 {[%emt 0:00:08]} 2. Nf3 {[%emt 0:00:03]} Nc6 {[%emt 0:00:16]} 3. Bb5 {[%emt 0:00:04]} Nf6 {[%emt 0:00:06]} 4. O-O {[%emt 0:00:04]} Nxe4 {[%emt 0:00:05]} 5. d4 {[%emt 0:00:02]} Nd6 {[%emt 0:00:07]} 6. Bxc6 {[%emt 0:00:04]} dxc6 {[%emt 0:00:01]} 7. dxe5 {[%emt 0:00:02]} Nf5 {[%emt 0:00:03]} 8. Qxd8+ {[%emt 0:00:03]} Kxd8 {[%emt 0:00:01]} 9. h3 {[%emt 0:00:06]} Ke8 {[%emt 0:00:07]} 10. Nc3 {[%emt 0:00:08]} h5 {[%emt 0:00:15]} 11. Rd1 {[%emt 0:00:59]} Be7 {[%emt 0:00:49]} 12. Ne2 {[%emt 0:00:17]} Nh4 {[%emt 0:02:16]} 13. Nxh4 {[%emt 0:00:17]} Bxh4 {[%emt 0:00:02]} 14. Be3 {[%emt 0:00:18]} Be7 {[%emt 0:00:05]} 15. Rd2 {[%emt 0:00:24]} Bf5 {[%emt 0:02:26]} 16. Nd4 {[%emt 0:00:17]} Bd7 {[%emt 0:00:24]} 17. Rad1 {[%emt 0:00:10]} Rd8 {[%emt 0:00:06]} 18. Ne2 {[%emt 0:00:03]} Bf5 {[%emt 0:00:13]} 19. Nd4 {[%emt 0:00:02]} Bd7 {[%emt 0:00:03]} 20. Ne2 {[%emt 0:00:10]} Bf5 {[%emt 0:00:04]} 21. Nd4 {[%emt 0:00:03]} 1/2-1/2

[Event "Chinese League Div-A Rapid 2022"]
[Site "Fuling,Chongqing"]
[Date "2022.09.16"]
[Round "9.8"]
[White "Li, Haoyu"]
[Black "Zeng, Chongsheng"]
[Result "0-1"]
[ECO "B22"]
[WhiteElo "2369"]
[BlackElo "2597"]
[Annotator "ChessBase"]
[PlyCount "128"]
[EventDate "2022.09.07"]
[EventType "team-tourn"]
[EventCountry "CHN"]
[SourceTitle "playchess.com"]
[Source "ChessBase"]
[SourceQuality "1"]
[TimeControl "1500+10"]

1. e4 {[%emt 0:00:03]} c5 {[%emt 0:00:02]} 2. Nf3 {[%emt 0:00:03]} Nc6 {[%emt 0:00:05]} 3. c3 {[%emt 0:00:08]} Nf6 {[%emt 0:00:05]} 4. e5 {[%emt 0:00:04]} Nd5 {[%emt 0:00:02]} 5. d4 {[%emt 0:00:05]} cxd4 {[%emt 0:00:01]} 6. cxd4 {[%emt 0:00:06]} d6 {[%emt 0:00:01]} 7. Bc4 {[%emt 0:00:21]} Nb6 {[%emt 0:00:02]} 8. Bb5 {[%emt 0:00:13]} Bd7 {[%emt 0:00:02]} 9. Nc3 {[%emt 0:01:02]} dxe5 {[%emt 0:00:57]} 10. dxe5 {[%emt 0:02:16]} g6 {[%emt 0:00:33]} 11. O-O {[%emt 0:00:48]} Bg7 {[%emt 0:00:46]} 12. Re1 {[%emt 0:00:54]} O-O {[%emt 0:02:10]} 13. Bg5 {[%emt 0:02:04]} Re8 {[%emt 0:01:35]} 14. h3 {[%emt 0:03:04]} a6 {[%emt 0:00:50]} 15. Bxc6 {[%emt 0:01:05]} Bxc6 {[%emt 0:00:03]} 16. Nd4 {[%emt 0:00:09]} Bd5 {[%emt 0:03:46]} 17. Nxd5 {[%emt 0:02:01]} Qxd5 {[%emt 0:00:25]} 18. Nb3 {[%emt 0:00:28]} Rac8 {[%emt 0:01:25]} 19. Qe2 {[%emt 0:01:24]} Nc4 {[%emt 0:01:24]} 20. f4 {[%emt 0:04:30]} b5 {[%emt 0:00:18]} 21. Rad1 {[%emt 0:00:11]} Qb7 {[%emt 0:00:18]} 22. Bh4 {[%emt 0:00:31]} Bh6 {[%emt 0:01:30]} 23. Qf2 {[%emt 0:01:00]} Bg7 {[%emt 0:05:48]} 24. Nc5 {[%emt 0:00:44]} Qb6 {[%emt 0:00:37]} 25. Nd3 {[%emt 0:00:15]} e6 {[%emt 0:04:00]} 26. b3 {[%emt 0:00:33]} Qxf2+ {[%emt 0:00:02]} 27. Bxf2 {[%emt 0:01:31]} Na3 {[%emt 0:00:01]} 28. Nc5 {[%emt 0:00:32]} Nc2 {[%emt 0:01:21]} 29. Re4 {[%emt 0:00:39]} Bf8 {[%emt 0:00:55]} 30. Nd7 {[%emt 0:00:29]} Be7 {[%emt 0:00:01]} 31. a4 {[%emt 0:00:44]} Kg7 {[%emt 0:00:06]} 32. axb5 {[%emt 0:00:48]} axb5 {[%emt 0:00:01]} 33. Nf6 {[%emt 0:01:10]} Red8 {[%emt 0:00:15]} 34. Rc1 {[%emt 0:00:03]} Rd3 {[%emt 0:00:38]} 35. Kh2 {[%emt 0:00:35]} Rxb3 {[%emt 0:00:21]} 36. Re2 {[%emt 0:00:09]} Rbc3 {[%emt 0:00:02]} 37. Rd2 {[%emt 0:00:15]} Bxf6 {[%emt 0:00:16]} 38. exf6+ {[%emt 0:00:01]} Kxf6 {[%emt 0:00:04]} 39. Rd7 {[%emt 0:00:05]} Kg7 {[%emt 0:00:34]} 40. Rb7 {[%emt 0:00:11]} b4 {[%emt 0:00:13]} 41. Rxb4 {[%emt 0:00:09]} Nxb4 {[%emt 0:00:02]} 42. Rxc3 {[%emt 0:00:01]} Rxc3 {[%emt 0:00:00]} 43. Bd4+ {[%emt 0:00:02]} f6 {[%emt 0:00:24]} 44. Bxc3 {[%emt 0:00:02]} Nd5 {[%emt 0:00:00]} 45. Bd2 {[%emt 0:00:02]} Kf7 {[%emt 0:00:21]} 46. Kg3 {[%emt 0:00:02]} Ke7 {[%emt 0:00:13]} 47. Kf3 {[%emt 0:00:02]} Kd6 {[%emt 0:00:01]} 48. Bc1 {[%emt 0:00:09]} Kc5 {[%emt 0:00:18]} 49. Bb2 {[%emt 0:00:06]} Kc4 {[%emt 0:00:08]} 50. Ba1 {[%emt 0:00:22]} Kd3 {[%emt 0:00:07]} 51. g4 {[%emt 0:00:19]} f5 {[%emt 0:00:15]} 52. Be5 {[%emt 0:00:11]} Ne7 {[%emt 0:00:08]} 53. Bc7 {[%emt 0:00:24]} Nc6 {[%emt 0:00:04]} 54. Kg3 {[%emt 0:00:10]} Ke4 {[%emt 0:00:11]} 55. gxf5 {[%emt 0:00:13]} exf5 {[%emt 0:00:16]} 56. Kh4 {[%emt 0:00:14]} Nd4 {[%emt 0:00:08]} 57. Bd6 {[%emt 0:00:07]} Ne6 {[%emt 0:00:08]} 58. Kg3 {[%emt 0:00:02]} Kd5 {[%emt 0:00:15]} 59. Bb8 {[%emt 0:00:01]} Ke4 {[%emt 0:00:01]} 60. Bd6 {[%emt 0:00:01]} h6 {[%emt 0:00:12]} 61. Bb8 {[%emt 0:00:05]} Ng7 {[%emt 0:00:09]} 62. Bd6 {[%emt 0:00:25]} Nh5+ {[%emt 0:00:06]} 63. Kh4 {[%emt 0:00:04]} Nxf4 {[%emt 0:00:20]} 64. Bxf4 {[%emt 0:00:05]} g5+ {[%emt 0:00:01]} 0-1

[Event "Chinese League Div-A Rapid 2022"]
[Site "Fuling,Chongqing"]
[Date "2022.09.16"]
[Round "9.9"]
[White "Huang, Qian"]
[Black "Li, Ruofan"]
[Result "1-0"]
[ECO "A13"]
[WhiteElo "2433"]
[BlackElo "2302"]
[Annotator "TA"]
[PlyCount "105"]
[EventDate "2022.09.07"]
[EventType "team-tourn"]
[EventCountry "CHN"]
[SourceTitle "playchess.com"]
[Source "ChessBase"]
[SourceQuality "1"]
[TimeControl "1500+10"]

{[%evp 13,105,16,25,14,24,15,18,18,22,16,20,14,17,0,8,3,47,31,30,28,37,40,43,9,94,61,144,148,144,151,141,143,175,159,193,178,288,275,470,95,216,200,212,112,112,113,229,216,288,273,279,259,486,472,577,550,795,568,568,568,561,445,439,431,561,561,554,513,502,480,1067,1049,1314,1302,1047,1283,1169,787,1098,862,1091,787,964,758,680,0,2606,2152,2128,2089,2096,2089,1832,1663]} 1. c4 {[%emt 0:00:03]} e6 {[%emt 0:00:02]} 2. g3 {[%emt 0:00:03]} d5 {[%emt 0:00:03]} 3. Bg2 {[%emt 0:00:02]} Nf6 {[%emt 0:00:03]} 4. Nf3 {[%emt 0:00:01]} dxc4 {[%emt 0:00:01]} 5. Qa4+ {[%emt 0:00:04]} c6 {[%emt 0:00:03]} 6. Qxc4 {[%emt 0:00:04]} b5 {[%emt 0:00:02]} 7. Qc2 {[%emt 0:00:33]} Bb7 {[%emt 0:00:02]} 8. a4 {[%emt 0:01:15] A13: English Opening: 1...e6.} a6 {[%emt 0:00:01]} 9. O-O {[%emt 0:00:23]} c5 {[%emt 0:00:53]} 10. axb5 {[%emt 0:03:51] The position is equal.} axb5 {[%emt 0:00:01]} 11. Rxa8 {[%emt 0:00:02]} Bxa8 {[%emt 0:00:01] [#]} 12. Qb3 $146 {[%emt 0:00:02]} ({Predecessor:} 12. Na3 Bc6 13. d3 Be7 14. Qb3 b4 15. Nc4 O-O 16. e4 Bb5 17. Be3 Nc6 18. Rc1 {0-1 (42) Bauer,C (2639)-Alavi Moghaddam,S (2445) Europe Echecs INT 2021}) 12... b4 {[%emt 0:00:20]} 13. d4 {[%emt 0:01:29]} Nbd7 {[%emt 0:02:56]} 14. Bg5 {[%emt 0:05:21]} Nb6 {[%emt 0:11:13] Against Qa4+} 15. Nbd2 {[%emt 0:02:30]} cxd4 {[%emt 0:01:21]} 16. Qd3 {[%emt 0:00:32]} Be7 $1 {[%emt 0:03:20]} 17. Qb5+ {[%emt 0:00:58]} Nbd7 {[%emt 0:00:39][%cal Od4d3]} 18. Bxf6 {[%emt 0:02:14]} gxf6 {[%emt 0:00:10]} (18... Bxf6 $11 {remains equal.} 19. Ra1 Bxf3 20. Nxf3 O-O) 19. Ra1 {[%emt 0:00:41]} O-O {[%emt 0:01:12] [#]} (19... d3 $14) 20. Rxa8 $1 $16 {[%emt 0:00:29][%mdl 576] Deflection. White has more active pieces.} Qxa8 {[%emt 0:00:02]} 21. Qxd7 {[%emt 0:00:01]} Bc5 {[%emt 0:00:01]} 22. Nb3 $36 {[%emt 0:00:56][%cal Bd2b3,Bb3d4,Bd4c6][%mdl 2080] White is in control.} Bb6 {[%emt 0:01:49]} 23. Nfxd4 {[%emt 0:02:52]} Qa2 {[%emt 0:00:17]} 24. Be4 {[%emt 0:02:23][%cal Od4e6]} Bxd4 {[%emt 0:00:52]} (24... f5 {was necessary.}) 25. Nxd4 $18 {[%emt 0:00:03]} (25. Qxd4 Qxb3 26. Qxf6 Rc8 $11) 25... Qxb2 $2 {[%emt 0:00:01] [#]} (25... f5 {was called for.}) 26. e3 $2 {[%emt 0:01:40]} (26. Nxe6 $1 $18 {[%mdl 512]} Qxe2 27. Bf5 (27. Nxf8 Qe1+ 28. Kg2 Qxe4+ 29. f3 Qe2+ 30. Kg1 Kxf8 $15) (27. Bxh7+ Kxh7 28. Nxf8+ Kg7 $16)) 26... Qc1+ {[%emt 0:01:12]} (26... f5 $16) 27. Kg2 {[%emt 0:00:01]} Qc4 {[%emt 0:00:02]} 28. Qb7 {[%emt 0:00:34]} (28. Qe7 $18 Kg7 29. Bf3) 28... f5 $16 {[%emt 0:00:34]} 29. Bf3 {[%emt 0:00:32]} Kg7 {[%emt 0:01:16]} (29... Qc5 $16 30. Qd7 (30. Nc6 Qd6 $16) 30... Rb8) 30. Nc6 {[%emt 0:00:11]} Qc5 {[%emt 0:00:56]} 31. Nxb4 {[%emt 0:00:09]} Rd8 {[%emt 0:00:04]} 32. Bh5 {[%emt 0:00:17]} Qf8 {[%emt 0:00:24]} (32... Rf8 {keeps fighting.} 33. Bf3 Rd8) 33. Nc6 $18 {[%emt 0:00:07]} Rd2 {[%emt 0:00:21]} 34. Ne5 {[%emt 0:00:01][%cal Re5f7]} Kh6 {[%emt 0:00:06]} 35. Qxf7 {[%emt 0:00:15]} Qxf7 {[%emt 0:00:19]} 36. Bxf7 {[%emt 0:00:01]} Rd6 {[%emt 0:00:05]} 37. Be8 {[%emt 0:00:17] aiming for Nf7+.} Kg7 {[%emt 0:00:03]} 38. h4 {[%emt 0:00:19]} Kf6 {[%emt 0:00:03]} 39. f4 {[%emt 0:00:13]} Ra6 {[%emt 0:00:11]} 40. Kf3 {[%emt 0:00:00]} Ra3 {[%emt 0:00:02]} 41. Bb5 {[%emt 0:00:00] g4 is the strong threat.} Rb3 {[%emt 0:00:10]} (41... Ra1 $142 42. Nc6 h5) 42. Bc4 {[%emt 0:00:03]} Rc3 {[%emt 0:00:02]} 43. g4 {[%emt 0:00:13]} fxg4+ {[%emt 0:00:08]} 44. Nxg4+ {[%emt 0:00:01]} Ke7 {[%emt 0:00:43]} 45. Ne5 {[%emt 0:00:16]} Kf6 {[%emt 0:00:17]} 46. Bd3 {[%emt 0:00:03]} h6 {[%emt 0:00:02]} 47. h5 {[%emt 0:00:37]} Ra3 {[%emt 0:00:14]} 48. Bg6 {[%emt 0:00:05]} Ra4 {[%emt 0:00:06]} 49. Bd3 $2 {[%emt 0:00:15]} ({White should try} 49. e4 $18 Kg7 50. Nf7) 49... Rb4 $2 {[%emt 0:00:10][%mdl 8192]} (49... Ra3 $11 50. Ng4+ Kf7) 50. Bc4 {[%emt 0:00:12] White is clearly winning.} Ra4 {[%emt 0:00:22]} 51. Ng4+ {[%emt 0:00:03]} Ke7 {[%emt 0:00:11]} 52. Bd3 {[%emt 0:00:01]} Ra5 {[%emt 0:00:04]} 53. Bg6 {[%emt 0:00:02] Weighted Error Value: White=0.38/Black=0.53} 1-0

[Event "Chinese League Div-A Rapid 2022"]
[Site "Fuling,Chongqing"]
[Date "2022.09.16"]
[Round "9.10"]
[White "Wang, Chuqiao"]
[Black "Wang, Yu A."]
[Result "1/2-1/2"]
[ECO "D53"]
[WhiteElo "2037"]
[BlackElo "2271"]
[Annotator "TA"]
[PlyCount "59"]
[EventDate "2022.09.07"]
[EventType "team-tourn"]
[EventCountry "CHN"]
[SourceTitle "playchess.com"]
[Source "ChessBase"]
[SourceQuality "1"]
[TimeControl "1500+10"]

{[%evp 14,59,31,20,26,26,27,13,19,14,20,16,18,18,21,19,23,20,25,19,23,20,35,-18,82,-7,0,-33,-35,-42,-35,-45,-36,-35,-35,-43,-37,-60,-50,-45,-32,-17,-20,-29,-25,-42,-52,-77]} 1. d4 {[%emt 0:00:03]} d5 {[%emt 0:00:01]} 2. c4 {[%emt 0:00:02]} c6 {[%emt 0:00:01]} 3. Nc3 {[%emt 0:00:06]} Nf6 {[%emt 0:00:01]} 4. Nf3 {[%emt 0:00:05]} e6 {[%emt 0:00:02]} 5. Bg5 {[%emt 0:00:06]} h6 {[%emt 0:00:02]} 6. Bh4 {[%emt 0:00:11]} Be7 {[%emt 0:01:03]} 7. e3 {[%emt 0:00:15]} Nbd7 {[%emt 0:00:23]} 8. Qc2 {[%emt 0:01:57]} Nh5 {[%emt 0:04:14] D53: Queen's Gambit Declined: 4 Bg5 Be7: Early deviations.} 9. Bxe7 {[%emt 0:00:39]} Qxe7 {[%emt 0:00:02]} 10. cxd5 {[%emt 0:00:33]} exd5 {[%emt 0:00:15] The position is equal.} 11. Be2 {[%emt 0:00:11]} O-O {[%emt 0:00:24]} 12. O-O {[%emt 0:00:12]} Nhf6 {[%emt 0:00:16] [#]} 13. Nd2 $146 {[%emt 0:01:03]} ({Predecessor:} 13. Rab1 a5 14. a3 Re8 15. b4 axb4 16. axb4 b5 17. Bd3 Bb7 18. Nd2 Nb6 19. Nb3 {½-½ (55) Gonzalez Perez,A (2429)-Van den Bosch,A (2028) Badalona 2022}) 13... b6 {[%emt 0:01:37]} 14. Bf3 {[%emt 0:01:02]} Bb7 {[%emt 0:02:32]} 15. Rfd1 {[%emt 0:00:58]} Rfe8 {[%emt 0:00:28]} 16. a3 {[%emt 0:01:26]} Rac8 {[%emt 0:04:20]} 17. Rac1 {[%emt 0:03:00]} c5 {[%emt 0:00:29]} 18. Qd3 {[%emt 0:03:14]} ({White should try} 18. Qf5 $14) 18... c4 {[%emt 0:00:59]} (18... Ne4 $11) 19. Qe2 {[%emt 0:00:01]} ({Better is} 19. Qf5 $16) 19... a6 {[%emt 0:00:29]} 20. Re1 {[%emt 0:02:15]} b5 {[%emt 0:01:25]} 21. e4 {[%emt 0:03:19]} dxe4 {[%emt 0:00:01]} 22. Ndxe4 {[%emt 0:00:02]} Nxe4 {[%emt 0:00:02]} 23. Bxe4 {[%emt 0:00:03]} Nf6 {[%emt 0:02:38][%cal Rf6e4]} 24. Bh7+ {[%emt 0:00:19]} Kf8 {[%emt 0:00:01]} 25. Bf5 {[%emt 0:01:13]} Qxe2 {[%emt 0:00:19]} (25... Qd6 {looks sharper.} 26. Qd2 Rcd8 27. Rxe8+ Rxe8 28. Rd1 a5) 26. Rxe2 {[%emt 0:00:08]} Rxe2 {[%emt 0:00:03]} 27. Bxc8 {[%emt 0:00:04]} Re7 {[%emt 0:00:02]} 28. Bxb7 {[%emt 0:00:11]} Rxb7 {[%emt 0:00:01]} 29. f3 {[%emt 0:00:25]} Ke7 {[%emt 0:02:42]} 30. Ne4 {[%emt 0:02:02] Weighted Error Value: White=0.18 (very precise) /Black=0.12 (very precise)} 1/2-1/2

[Event "Chinese League Div-A Rapid 2022"]
[Site "Fuling,Chongqing"]
[Date "2022.09.16"]
[Round "9.11"]
[White "Xue, Haowen"]
[Black "Bai, Jinshi"]
[Result "1-0"]
[ECO "C42"]
[WhiteElo "2128"]
[BlackElo "2586"]
[Annotator "ChessBase"]
[PlyCount "81"]
[EventDate "2022.09.07"]
[EventType "team-tourn"]
[EventCountry "CHN"]
[SourceTitle "playchess.com"]
[Source "ChessBase"]
[SourceQuality "1"]
[TimeControl "1500+10"]

1. e4 {[%emt 0:00:03]} e5 {[%emt 0:00:18]} 2. Nf3 {[%emt 0:00:02]} Nf6 {[%emt 0:00:08]} 3. Nxe5 {[%emt 0:00:06]} d6 {[%emt 0:00:02]} 4. Nf3 {[%emt 0:00:02]} Nxe4 {[%emt 0:00:02]} 5. d4 {[%emt 0:00:06]} d5 {[%emt 0:00:07]} 6. Bd3 {[%emt 0:00:05]} Bd6 {[%emt 0:00:16]} 7. O-O {[%emt 0:00:06]} O-O {[%emt 0:00:02]} 8. c4 {[%emt 0:00:11]} c6 {[%emt 0:00:02]} 9. Nc3 {[%emt 0:00:10]} Nxc3 {[%emt 0:00:28]} 10. bxc3 {[%emt 0:00:01]} dxc4 {[%emt 0:00:01]} 11. Bxc4 {[%emt 0:00:02]} Bf5 {[%emt 0:00:03]} 12. Bg5 {[%emt 0:00:50]} Qa5 {[%emt 0:00:05]} 13. Nh4 {[%emt 0:00:43]} Be6 {[%emt 0:00:21]} 14. Bxe6 {[%emt 0:00:08]} Qxg5 {[%emt 0:00:02]} 15. Nf3 {[%emt 0:00:28]} Qa5 {[%emt 0:00:18]} 16. Qb3 {[%emt 0:01:13]} Qc7 {[%emt 0:01:54]} 17. Bc4 {[%emt 0:00:23]} Nd7 {[%emt 0:00:15]} 18. a4 {[%emt 0:01:11]} Rae8 {[%emt 0:02:07]} 19. a5 {[%emt 0:01:11]} Nf6 {[%emt 0:01:47]} 20. g3 {[%emt 0:01:38]} Re7 {[%emt 0:00:36]} 21. Rfe1 {[%emt 0:00:39]} Rfe8 {[%emt 0:03:16]} 22. Rxe7 {[%emt 0:00:31]} Rxe7 {[%emt 0:01:31]} 23. Kg2 {[%emt 0:00:36]} g6 {[%emt 0:06:57]} 24. Ng5 {[%emt 0:03:07]} Nd5 {[%emt 0:03:18]} 25. Bxd5 {[%emt 0:00:23]} cxd5 {[%emt 0:00:02]} 26. Qxd5 {[%emt 0:00:04]} Kg7 {[%emt 0:01:27]} 27. Ne4 {[%emt 0:03:32]} Rd7 {[%emt 0:00:22]} 28. Qb5 {[%emt 0:02:16]} Be7 {[%emt 0:00:15]} 29. Rb1 {[%emt 0:01:36]} a6 {[%emt 0:00:06]} 30. Qa4 {[%emt 0:02:06]} Rd5 {[%emt 0:00:02]} 31. Rb6 {[%emt 0:00:31]} f5 {[%emt 0:00:48]} 32. Nd2 {[%emt 0:02:17]} Rb5 {[%emt 0:01:59]} 33. Rxb5 {[%emt 0:02:51]} Qc6+ {[%emt 0:00:01]} 34. d5 {[%emt 0:00:32]} Qxb5 {[%emt 0:00:02]} 35. Qxb5 {[%emt 0:00:19]} axb5 {[%emt 0:00:01]} 36. Nb3 {[%emt 0:00:02]} Bf6 {[%emt 0:01:55]} 37. Nc5 {[%emt 0:00:40]} Bxc3 {[%emt 0:00:02]} 38. Nxb7 {[%emt 0:00:01]} Kf6 {[%emt 0:00:20]} 39. d6 {[%emt 0:00:32]} Ke6 {[%emt 0:00:03]} 40. Nc5+ {[%emt 0:00:04]} Kxd6 {[%emt 0:00:12]} 41. a6 {[%emt 0:00:00]} 1-0

[Event "Chinese League Div-A Rapid 2022"]
[Site "Fuling,Chongqing"]
[Date "2022.09.16"]
[Round "9.13"]
[White "Xu, Yinglun"]
[Black "Ma, Qun"]
[Result "1/2-1/2"]
[ECO "D12"]
[WhiteElo "2549"]
[BlackElo "2666"]
[Annotator "ChessBase"]
[PlyCount "82"]
[EventDate "2022.09.07"]
[EventType "team-tourn"]
[EventCountry "CHN"]
[SourceTitle "playchess.com"]
[Source "ChessBase"]
[SourceQuality "1"]
[TimeControl "1500+10"]

1. c4 {[%emt 0:00:03]} c6 {[%emt 0:00:06]} 2. d4 {[%emt 0:00:07]} d5 {[%emt 0:00:02]} 3. Nf3 {[%emt 0:00:09]} Nf6 {[%emt 0:00:03]} 4. e3 {[%emt 0:00:02]} Bf5 {[%emt 0:00:07]} 5. Nc3 {[%emt 0:00:02]} e6 {[%emt 0:00:02]} 6. Nh4 {[%emt 0:00:03]} Be4 {[%emt 0:00:13]} 7. f3 {[%emt 0:00:40]} Bg6 {[%emt 0:00:03]} 8. Bd2 {[%emt 0:00:22]} Be7 {[%emt 0:00:08]} 9. cxd5 {[%emt 0:03:17]} cxd5 {[%emt 0:00:04]} 10. Nxg6 {[%emt 0:02:22]} hxg6 {[%emt 0:00:03]} 11. Qb3 {[%emt 0:00:03]} O-O {[%emt 0:00:28]} 12. Rc1 {[%emt 0:04:01]} Nbd7 {[%emt 0:04:31]} 13. Bd3 {[%emt 0:02:54]} Rb8 {[%emt 0:04:55]} 14. a4 {[%emt 0:00:44]} a6 {[%emt 0:00:30]} 15. O-O {[%emt 0:00:41]} Bd6 {[%emt 0:00:05]} 16. g3 {[%emt 0:00:51]} Qe7 {[%emt 0:00:38]} 17. Kg2 {[%emt 0:00:33]} Rfd8 {[%emt 0:02:58]} 18. Rc2 {[%emt 0:00:32]} Re8 {[%emt 0:01:07]} 19. Rfc1 {[%emt 0:01:10]} Nf8 {[%emt 0:04:34]} 20. Ne2 {[%emt 0:05:54]} e5 {[%emt 0:00:26]} 21. dxe5 {[%emt 0:00:09]} Qxe5 {[%emt 0:00:10]} 22. a5 {[%emt 0:01:17]} Ne6 {[%emt 0:01:08]} 23. Qa4 {[%emt 0:00:04]} Qh5 {[%emt 0:01:17]} 24. Nf4 {[%emt 0:00:36]} Bxf4 {[%emt 0:02:02]} 25. exf4 {[%emt 0:00:02]} d4 {[%emt 0:00:02]} 26. Re1 {[%emt 0:00:01]} Nc5 {[%emt 0:01:04]} 27. Rxe8+ {[%emt 0:00:24]} Rxe8 {[%emt 0:00:02]} 28. Qxd4 {[%emt 0:00:03]} Nb3 {[%emt 0:01:23]} 29. Qc3 {[%emt 0:00:50]} Nxd2 {[%emt 0:00:00]} 30. Qxd2 {[%emt 0:00:28]} Rd8 {[%emt 0:00:00]} 31. Qc3 {[%emt 0:00:15]} Nd5 {[%emt 0:00:06]} 32. Qd2 {[%emt 0:01:17]} Nf6 {[%emt 0:01:28]} 33. Qc3 {[%emt 0:00:03]} Nd5 {[%emt 0:00:01]} 34. Qd2 {[%emt 0:00:20]} Nf6 {[%emt 0:00:07]} 35. Qc3 {[%emt 0:00:12]} Nd5 {[%emt 0:00:07]} 36. Qd2 {[%emt 0:00:01]} Nf6 {[%emt 0:00:11]} 37. Qc3 {[%emt 0:00:03]} Nd5 {[%emt 0:00:25]} 38. Qd2 {[%emt 0:00:14]} Nf6 {[%emt 0:00:01]} 39. Qc3 {[%emt 0:00:02]} Nd5 {[%emt 0:00:01]} 40. Qd2 {[%emt 0:00:03]} Nf6 {[%emt 0:00:02]} 41. Qc3 {[%emt 0:00:02]} Nd5 {[%emt 0:00:16]} 1/2-1/2

[Event "Chinese League Div-A Rapid 2022"]
[Site "Fuling,Chongqing"]
[Date "2022.09.16"]
[Round "9.14"]
[White "Yan, Tianqi"]
[Black "Li, Xueyi"]
[Result "1-0"]
[ECO "B15"]
[WhiteElo "2188"]
[BlackElo "2280"]
[Annotator "TA"]
[PlyCount "67"]
[EventDate "2022.09.07"]
[EventType "team-tourn"]
[EventCountry "CHN"]
[SourceTitle "playchess.com"]
[Source "ChessBase"]
[SourceQuality "1"]
[TimeControl "1500+10"]

{[%evp 18,67,39,26,34,31,27,16,37,32,42,19,32,45,71,38,56,50,45,0,103,104,108,88,129,132,116,104,137,116,170,182,185,179,190,195,190,170,250,236,326,308,304,308,329,325,336,339,738,750,756,740]} 1. e4 {[%emt 0:00:02] Curtacci} c6 {[%emt 0:00:01]} 2. d4 {[%emt 0:00:04]} d5 {[%emt 0:00:02]} 3. Nc3 {[%emt 0:00:05]} dxe4 {[%emt 0:00:02]} 4. Nxe4 {[%emt 0:00:04]} Nf6 {[%emt 0:00:02]} 5. Nxf6+ {[%emt 0:00:06]} exf6 {[%emt 0:00:02]} 6. c3 {[%emt 0:00:06]} Bd6 {[%emt 0:00:02]} 7. Bd3 {[%emt 0:00:05]} O-O {[%emt 0:00:02]} 8. Qc2 {[%emt 0:00:04]} Re8+ {[%emt 0:00:02]} 9. Ne2 {[%emt 0:00:05]} h6 {[%emt 0:00:02]} 10. O-O {[%emt 0:00:15]} Nd7 {[%emt 0:00:08] is now more promising than 10...Qc7. B15: Caro-Kann: 3 Nc3: 3...g6 and 3...dxe4 4 Nxe4 Nf6 5 Nxf6+ exf6.} 11. Bd2 {[%emt 0:00:11]} Nf8 {[%emt 0:00:03]} 12. Rae1 {[%emt 0:00:06]} a5 {[%emt 0:01:31] The position is equal.} 13. h3 {[%emt 0:01:57] [#]} a4 $146 {[%emt 0:00:22]} ({Predecessor:} 13... Bd7 14. Kh1 Qc7 15. Ng1 Rxe1 16. Rxe1 Re8 17. Rxe8 Bxe8 18. c4 Bd7 19. c5 Bf4 20. Bc3 Qd8 21. Qe2 Be6 22. b3 Bd5 23. Qg4 Bc7 24. Be4 {½-½ (24) Osis,A-Spitzbarth,F ICCF corr 1991 Corr Nr. 1 [Curtacci]}) 14. c4 {[%emt 0:00:33][%cal Bc3c4,Bc4c5][%mdl 32]} Be6 {[%emt 0:01:14]} 15. f4 {[%emt 0:00:25][%cal Bf2f4,Bf4f5][%mdl 32]} Bd7 {[%emt 0:00:40]} 16. c5 {[%emt 0:00:34]} Bc7 {[%emt 0:00:20]} 17. f5 $1 {[%emt 0:00:12] Prevents Be6.} b6 {[%emt 0:04:35]} 18. Bc4 {[%emt 0:03:32]} b5 {[%emt 0:00:00]} (18... bxc5 $11 {keeps the balance.} 19. dxc5 Bc8) 19. Bd3 $16 {[%emt 0:00:04] White stays focused until the end.} Bc8 {[%emt 0:00:00]} 20. Bf4 {[%emt 0:03:07]} Bxf4 {[%emt 0:00:27]} 21. Rxf4 {[%emt 0:00:03]} Qd5 {[%emt 0:00:12]} 22. Be4 {[%emt 0:01:06]} Qd7 {[%emt 0:00:01]} 23. Qd3 {[%emt 0:01:12]} b4 {[%emt 0:00:36] [#]} (23... Ba6 $16 {might work better.}) 24. Qf3 $1 $18 {[%emt 0:00:50]} Bb7 {[%emt 0:00:30]} 25. Rg4 {[%emt 0:00:04]} Nh7 {[%emt 0:00:39] [#]} 26. h4 {[%emt 0:00:03] Inhibits Ng5.} Kh8 {[%emt 0:01:07]} 27. Rd1 {[%emt 0:01:30]} Qe7 {[%emt 0:01:04]} (27... a3 {is a better defense.}) 28. Ng3 {[%emt 0:00:02]} Rac8 {[%emt 0:00:11]} 29. Nh5 {[%emt 0:00:29]} Rg8 {[%emt 0:00:11]} 30. Qg3 {[%emt 0:01:33]} Qf8 {[%emt 0:00:01]} 31. Bc2 {[%emt 0:00:02]} Ba6 {[%emt 0:00:32]} 32. Re1 {[%emt 0:00:11] Prevents Be2.} ({Not} 32. Bxa4 Be2 $11) 32... Re8 $2 {[%emt 0:00:16]} (32... Bb5 33. b3 a3) 33. Rxe8 {[%emt 0:00:28]} Qxe8 {[%emt 0:00:02]} 34. Rxg7 {[%emt 0:00:06] Weighted Error Value: White=0.08 (flawless) /Black=0.27 (precise)} 1-0